bitfinex/quotes_BTCUSD_20220204
["timestamp","ask_amount","ask_price","bid_price","bid_amount"]
[1643998227998,0.061876,40409.0,40408.0,5.12386761]
[1643998228797,0.061864,40412.0,40408.0,5.12386761]
[1643998228997,0.061864,40412.0,40411.0,0.095]
[1643998229197,0.061864,40412.0,40411.0,0.14]
[1643998229397,0.061864,40412.0,40411.0,4.80589862]
[1643998234595,0.061864,40412.0,40411.0,4.75589862]
[1643998234795,0.061864,40412.0,40411.0,4.79589862]
[1643998235998,0.06890928,40412.0,40411.0,4.79589862]
[1643998236898,0.06890928,40412.0,40411.0,4.22861939]
[1643998237146,0.11890928,40412.0,40411.0,4.18861939]
[1643998237348,0.11890928,40412.0,40409.0,0.06318149]
[1643998237349,0.11890928,40412.0,40410.0,4.83562029]
[1643998238349,0.11890928,40412.0,40409.0,0.06318149]
[1643998238547,0.18077999,40412.0,40409.0,0.061865]
[1643998238748,0.18077999,40412.0,40409.0,0.0631815]
[1643998239148,0.111864,40412.0,40409.0,0.0631815]
[1643998239547,0.12082687,40412.0,40409.0,0.0631815]
[1643998239748,0.12082687,40412.0,40409.0,0.061865]
[1643998240147,0.10142768,40410.0,40409.0,0.061865]
[1643998240448,0.12082687,40412.0,40409.0,0.061865]
[1643998240901,0.10364856,40410.0,40409.0,0.061865]
[1643998241094,0.12082687,40412.0,40409.0,0.061865]
[1643998241295,0.09885469,40410.0,40409.0,0.061865]
[1643998241495,0.111864,40412.0,40409.0,0.061865]
[1643998241695,0.09740634,40410.0,40409.0,0.061865]
[1643998241894,0.111864,40412.0,40409.0,0.061865]
[1643998242293,0.09573978,40410.0,40409.0,0.061865]
[1643998242494,0.111864,40412.0,40409.0,4.95125487]
[1643998242694,0.11915824,40412.0,40409.0,4.95125487]
[1643998243294,0.111864,40412.0,40409.0,4.95125487]
[1643998243694,0.111864,40412.0,40410.0,0.31160857]
[1643998243898,0.05,40412.0,40411.0,0.3166494]
[1643998244114,0.05,40417.0,40411.0,5.20603927]
[1643998244295,0.05,40417.0,40414.0,0.061846]
[1643998244495,0.05,40417.0,40415.0,0.48636747]
[1643998244748,1.2937,40428.0,40415.0,0.48636747]
[1643998244749,0.05752032,40429.0,40416.0,1.8672494]
[1643998244955,0.05,40435.0,40416.0,1.8672494]
[1643998244956,0.00034384,40422.0,40417.0,0.0494]
[1643998245150,0.00034384,40429.0,40417.0,4.95980415]
[1643998245347,0.00034384,40435.0,40417.0,5.12164615]
[1643998245548,0.00894407,40436.0,40434.0,0.36676211]
[1643998245748,0.00034384,40435.0,40434.0,0.36676211]
[1643998245948,0.34732644,40435.0,40434.0,0.36676211]
[1643998246149,0.00894407,40436.0,40434.0,5.27716626]
[1643998246347,0.00928791,40436.0,40434.0,5.27716626]
[1643998246546,0.05,40435.0,40434.0,4.97223815]
[1643998246745,0.00894407,40436.0,40434.0,4.97223815]
[1643998246946,0.00928791,40436.0,40434.0,4.97223815]
[1643998247148,0.18255252,40435.0,40434.0,4.97223815]
[1643998247648,0.60568522,40435.0,40434.0,4.97223815]
[1643998248498,0.05,40435.0,40434.0,4.97223815]
[1643998249495,0.1825577,40435.0,40434.0,4.97223815]
[1643998249895,0.05,40435.0,40434.0,4.97223815]
[1643998250898,0.18013852,40435.0,40434.0,4.97223815]
[1643998251303,0.05,40435.0,40434.0,4.97223815]
[1643998252650,0.05,40435.0,40434.0,4.91040415]
[1643998252849,0.05,40435.0,40434.0,4.6538418]
[1643998253052,0.15356232,40435.0,40434.0,4.6538418]
[1643998253452,0.15356232,40435.0,40431.0,0.123668]
[1643998253453,0.05,40435.0,40431.0,0.123668]
[1643998253651,0.05,40435.0,40431.0,4.7775098]
[1643998253652,0.05,40432.0,40431.0,4.7775098]
[1643998254853,0.05,40432.0,40431.0,5.0769098]
[1643998256302,0.00034384,40433.0,40431.0,5.0769098]
[1643998256507,0.05,40432.0,40431.0,5.0769098]
[1643998257002,0.00034384,40433.0,40431.0,5.0769098]
[1643998257201,0.00131043,40434.0,40431.0,5.0769098]
[1643998257402,0.00034384,40433.0,40431.0,5.0769098]
[1643998257602,0.00165427,40434.0,40431.0,5.0769098]
[1643998257802,0.00034384,40434.0,40431.0,5.0769098]
[1643998258002,0.00165427,40434.0,40431.0,5.0769098]
[1643998258202,0.00131043,40434.0,40431.0,5.0275098]
[1643998258402,0.00165427,40434.0,40431.0,5.0275098]
[1643998259002,0.00034384,40434.0,40431.0,5.0275098]
[1643998259205,0.05131043,40435.0,40431.0,5.0769098]
[1643998260054,0.20000928,40432.0,40431.0,5.0275098]
[1643998260257,0.05,40432.0,40431.0,5.0275098]
[1643998261259,0.17856393,40432.0,40431.0,4.9038418]
[1643998261656,0.43331714,40432.0,40431.0,4.9038418]
[1643998262759,0.43331714,40432.0,40431.0,0.25]
[1643998262958,0.43331714,40432.0,40421.0,0.0013168]
[1643998262959,1.6,40431.0,40421.0,0.0013168]
[1643998263162,1.65,40422.0,40421.0,0.0013168]
[1643998263410,1.65,40422.0,40410.0,0.00526859]
[1643998263411,0.3696161,40411.0,40410.0,0.00526859]
[1643998263605,0.51944976,40411.0,40410.0,0.00526859]
[1643998263904,0.51944976,40411.0,40401.0,0.53215375]
[1643998263905,0.08791109,40409.0,40401.0,0.53215375]
[1643998264100,0.14978967,40409.0,40403.0,4.87480496]
[1643998264301,0.09522426,40406.0,40404.0,4.87480496]
[1643998264502,0.09522426,40406.0,40401.0,0.06188]
[1643998264503,0.05,40406.0,40405.0,5.18695982]
[1643998267159,0.05,40408.0,40405.0,5.18695982]
[1643998267353,0.05,40408.0,40406.0,0.061871]
[1643998267553,0.05,40408.0,40406.0,4.96820801]
[1643998268154,0.05,40408.0,40407.0,0.4468604]
[1643998268356,0.05,40408.0,40407.0,5.35319741]
[1643998273900,0.123735,40417.0,40407.0,5.35319741]
[1643998274102,1.00188857,40421.0,40407.0,5.35319741]
[1643998274103,0.86402,40421.0,40414.0,0.05]
[1643998274303,0.01880174,40421.0,40415.0,0.28031407]
[1643998274503,0.01880174,40421.0,40418.0,0.05]
[1643998274753,0.09990731,40420.0,40418.0,0.05]
[1643998274959,0.09990731,40420.0,40418.0,0.40322624]
[1643998275554,0.92452492,40419.0,40415.0,0.05]
[1643998275758,1.03341966,40419.0,40415.0,0.123709]
[1643998275953,0.23341966,40419.0,40415.0,0.123709]
[1643998276154,0.05667859,40418.0,40415.0,0.123709]
[1643998276354,0.05667859,40418.0,40407.0,0.07185478]
[1643998276555,0.05,40418.0,40412.0,0.469088]
[1643998276753,0.50229627,40419.0,40412.0,0.469088]
[1643998276754,0.05,40414.0,40412.0,0.469088]
[1643998276956,0.05819197,40414.0,40412.0,0.469088]
[1643998277155,0.05,40414.0,40413.0,4.66494413]
[1643998277356,0.05826934,40418.0,40413.0,4.66494413]
[1643998277558,0.00826934,40418.0,40413.0,4.66494413]
[1643998277956,0.00826934,40418.0,40411.0,0.12503695]
[1643998278156,0.14374182,40415.0,40411.0,0.12503695]
[1643998278408,0.05,40415.0,40412.0,4.91747992]
[1643998278601,0.05742227,40415.0,40412.0,4.91747992]
[1643998278802,0.00742227,40415.0,40412.0,4.91747992]
[1643998279204,0.061865,40414.0,40412.0,4.91747992]
[1643998279405,0.20396289,40414.0,40412.0,4.91747992]
[1643998279807,0.25396289,40414.0,40413.0,4.91747992]
[1643998280007,0.25396289,40414.0,40411.0,0.00131595]
[1643998280008,0.32470714,40414.0,40411.0,0.00131595]
[1643998280212,0.37470714,40414.0,40411.0,0.00131595]
[1643998281008,0.41045785,40412.0,40405.0,0.002]
[1643998281210,0.41045785,40412.0,40410.0,0.00131596]
[1643998281211,0.11780615,40411.0,40410.0,0.00131596]
[1643998281408,0.45503515,40411.0,40410.0,0.00131596]
[1643998282012,0.11780615,40411.0,40410.0,0.00131596]
[1643998282253,0.11780615,40411.0,40405.0,0.002]
[1643998282254,0.11780615,40411.0,40408.0,0.00131601]
[1643998282857,0.11780615,40411.0,40408.0,4.97673996]
[1643998283459,0.11780615,40411.0,40408.0,4.97542395]
[1643998283654,0.11780615,40411.0,40409.0,4.97542395]
[1643998283853,0.11780615,40411.0,40410.0,4.97542395]
[1643998284557,0.337229,40410.0,40405.0,0.002]
[1643998284756,0.11780615,40411.0,40408.0,0.00092185]
[1643998284957,0.337229,40410.0,40408.0,0.00092185]
[1643998285156,0.387229,40410.0,40408.0,0.00092185]
[1643998285461,0.05,40410.0,40408.0,0.00092185]
[1643998285656,0.05,40411.0,40407.0,0.05]
[1643998285906,0.53420734,40412.0,40407.0,0.05]
[1643998286201,0.47232985,40412.0,40407.0,0.00131502]
[1643998286400,0.47232985,40412.0,40407.0,0.05131502]
[1643998286600,0.47878763,40412.0,40407.0,0.05131502]
[1643998286801,0.47839191,40412.0,40407.0,0.11318402]
[1643998287000,0.47839191,40412.0,40407.0,0.111869]
[1643998287001,0.47232985,40412.0,40407.0,0.111869]
[1643998287200,0.0995737,40410.0,40407.0,0.113184]
[1643998287400,0.47232985,40412.0,40407.0,0.113184]
[1643998287600,0.09960432,40409.0,40407.0,0.251315]
[1643998287801,0.09960432,40409.0,40407.0,0.313186]
[1643998288201,0.05,40408.0,40407.0,0.311871]
[1643998288401,0.14833324,40408.0,40407.0,0.311871]
[1643998288701,0.05,40408.0,40407.0,0.311871]
[1643998288901,0.10262173,40409.0,40407.0,0.311871]
[1643998289300,0.14399182,40408.0,40407.0,0.311871]
[1643998289502,0.05837499,40408.0,40407.0,0.311871]
[1643998289754,0.10514368,40408.0,40407.0,0.306871]
[1643998289955,0.05837499,40408.0,40407.0,0.306871]
[1643998290154,0.00739794,40408.0,40407.0,0.306871]
[1643998290354,0.05810761,40409.0,40407.0,0.306871]
[1643998290755,0.00810761,40409.0,40407.0,0.306871]
[1643998290956,0.00810761,40409.0,40407.0,0.245]
[1643998291157,0.00810761,40409.0,40407.0,0.306868]
[1643998291360,0.00810761,40409.0,40407.0,0.245]
[1643998292156,0.06998161,40409.0,40407.0,0.306871]
[1643998293909,0.06998161,40409.0,40407.0,0.245]
[1643998295213,2.04497727,40408.0,40407.0,0.245]
[1643998295410,2.04497727,40408.0,40405.0,0.002]
[1643998295411,1.96259755,40406.0,40405.0,0.002]
[1643998295612,2.34982655,40406.0,40405.0,0.002]
[1643998295812,0.437229,40406.0,40405.0,0.0001]
[1643998296009,0.44513585,40406.0,40405.0,0.0001]
[1643998296810,0.39513585,40406.0,40405.0,0.0001]
[1643998297011,0.44513585,40406.0,40405.0,0.0001]
[1643998297449,0.39513585,40406.0,40405.0,0.0001]
[1643998297646,0.44513585,40406.0,40405.0,0.0001]
[1643998299047,0.44513585,40406.0,40405.0,0.0501]
[1643998301598,0.70620675,40406.0,40405.0,0.0501]
[1643998301798,0.44513585,40406.0,40405.0,0.0501]
[1643998302398,0.44013585,40406.0,40405.0,0.0501]
[1643998305149,0.44013585,40406.0,40405.0,0.034794]
[1643998306054,0.44013585,40406.0,40405.0,0.30855]
[1643998306055,0.045,40406.0,40405.0,0.30855]
[1643998306249,0.21879363,40409.0,40405.0,0.30855]
[1643998306250,0.1,40408.0,40405.0,0.30855]
[1643998306449,0.10781576,40408.0,40405.0,0.034794]
[1643998306650,0.00781576,40408.0,40406.0,0.05]
[1643998307049,0.00781576,40408.0,40405.0,0.034794]
[1643998307651,0.00781576,40408.0,40405.0,0.029794]
[1643998308049,0.05781576,40408.0,40405.0,0.029794]
[1643998308504,0.05781576,40408.0,40406.0,0.061876]
[1643998309305,0.00781576,40408.0,40406.0,0.061876]
[1643998309503,0.00781576,40408.0,40406.0,0.111876]
[1643998310306,0.10278402,40408.0,40406.0,0.111876]
[1643998310505,0.10649448,40408.0,40406.0,0.111876]
[1643998310706,0.05781576,40408.0,40406.0,0.111876]
[1643998310906,0.0579543,40408.0,40406.0,0.111876]
[1643998311311,0.05,40407.0,40406.0,0.111876]
[1643998311806,0.1079543,40408.0,40406.0,0.111876]
[1643998312007,0.0579543,40408.0,40406.0,0.111876]
[1643998312251,0.1079543,40408.0,40406.0,0.111876]
[1643998317711,0.0579543,40408.0,40406.0,0.111876]
[1643998318315,0.19672582,40408.0,40406.0,0.111876]
[1643998318512,0.05698918,40408.0,40406.0,0.111876]
[1643998319953,0.05,40408.0,40406.0,0.111876]
[1643998320154,0.06188,40406.0,40404.0,0.12500138]
[1643998320354,0.337229,40405.0,40404.0,0.00125538]
[1643998320553,0.03188,40406.0,40404.0,0.00125538]
[1643998320754,0.03188,40406.0,40403.0,0.06209102]
[1643998321453,0.09541897,40405.0,40403.0,0.06209102]
[1643998321657,0.05,40404.0,40403.0,0.06209102]
[1643998321956,0.05705592,40404.0,40403.0,0.06209102]
[1643998322154,0.03188,40406.0,40403.0,0.06209102]
[1643998322155,0.08188,40406.0,40403.0,0.11209102]
[1643998322356,0.03188,40406.0,40403.0,0.11209102]
[1643998322555,0.05,40406.0,40403.0,0.11209102]
[1643998322757,0.156913,40409.0,40405.0,0.123741]
[1643998322960,0.09504,40409.0,40408.0,0.05]
[1643998323156,0.09504,40409.0,40408.0,0.0994]
[1643998323602,0.02133667,40416.0,40408.0,0.0994]
[1643998323802,0.02133667,40416.0,40415.0,0.05]
[1643998324403,0.1453138,40418.0,40415.0,0.05]
[1643998324603,0.45601714,40418.0,40415.0,0.111858]
[1643998324804,0.05,40416.0,40414.0,0.134973]
[1643998325204,0.05,40416.0,40414.0,0.011258]
[1643998325605,0.1087233,40416.0,40414.0,0.011258]
[1643998326006,0.0587233,40416.0,40414.0,0.011258]
[1643998326207,0.1087233,40416.0,40414.0,0.011258]
[1643998326409,0.1087233,40416.0,40410.0,0.123729]
[1643998326609,0.1087233,40416.0,40405.0,0.2325]
[1643998326610,0.061874,40410.0,40405.0,0.2325]
[1643998326812,0.061874,40410.0,40403.0,0.00020902]
[1643998327008,0.061874,40410.0,40404.0,0.00125354]
[1643998327256,0.34256967,40408.0,40404.0,0.00125354]
[1643998327457,0.05,40406.0,40404.0,0.00125354]
[1643998327656,0.05,40406.0,40405.0,0.061873]
[1643998327856,0.40041311,40408.0,40405.0,0.061873]
[1643998328457,0.05,40406.0,40405.0,0.061873]
[1643998330262,0.05,40406.0,40404.0,0.123748]
[1643998330263,0.111883,40406.0,40403.0,0.00020902]
[1643998330460,0.161883,40406.0,40403.0,0.00125512]
[1643998330663,0.14589007,40404.0,40403.0,0.00146414]
[1643998330916,0.05,40404.0,40403.0,0.00146414]
[1643998331108,0.00747873,40404.0,40403.0,0.00146414]
[1643998331508,0.00747873,40404.0,40403.0,0.00020902]
[1643998331709,0.00747873,40404.0,40402.0,0.0031]
[1643998331912,0.00747873,40404.0,40403.0,0.03]
[1643998332113,0.00747873,40404.0,40403.0,0.03020902]
[1643998332114,0.10110784,40404.0,40403.0,0.03020902]
[1643998332311,0.061881,40405.0,40403.0,0.03020902]
[1643998332610,0.05,40404.0,40403.0,0.03020902]
[1643998333011,0.05,40404.0,40403.0,0.00020902]
[1643998333213,0.05,40404.0,40402.0,0.06623593]
[1643998333812,0.061881,40405.0,40402.0,0.06623593]
[1643998334014,0.061881,40405.0,40402.0,0.064981]
[1643998334413,0.061881,40405.0,40402.0,0.06519002]
[1643998334661,0.111881,40405.0,40402.0,0.06519002]
[1643998335061,0.161881,40405.0,40402.0,0.06519002]
[1643998335259,0.161881,40405.0,40402.0,0.064981]
[1643998335460,0.161881,40405.0,40402.0,0.06519002]
[1643998336261,0.170861,40405.0,40402.0,0.06519002]
[1643998336460,0.170861,40405.0,40402.0,0.064981]
[1643998336662,0.170861,40405.0,40402.0,0.06519002]
[1643998336862,0.161881,40405.0,40402.0,0.06519002]
[1643998337264,0.16928082,40405.0,40402.0,0.06519002]
[1643998337662,0.16928082,40405.0,40402.0,0.064981]
[1643998337863,0.16928082,40405.0,40402.0,0.06519002]
[1643998338405,0.16928082,40405.0,40402.0,0.06209002]
[1643998338601,0.16928082,40405.0,40402.0,0.04119002]
[1643998339001,0.16928082,40405.0,40402.0,0.040981]
[1643998339201,0.16928082,40405.0,40402.0,0.04119002]
[1643998339403,0.16928082,40405.0,40402.0,0.04068328]
[1643998340204,0.16928082,40405.0,40402.0,0.04047426]
[1643998340404,0.16928082,40405.0,40402.0,0.04068328]
[1643998342554,0.16928082,40405.0,40402.0,0.04047426]
[1643998342754,0.16928082,40405.0,40402.0,0.04068328]
[1643998342955,0.161881,40405.0,40402.0,0.04068328]
[1643998343157,0.00864361,40404.0,40402.0,0.04068328]
[1643998343559,0.11306003,40404.0,40402.0,0.04068328]
[1643998343759,0.05,40403.0,40402.0,0.04047426]
[1643998343959,0.05899812,40403.0,40402.0,0.04068328]
[1643998344159,0.00899812,40403.0,40402.0,0.04068328]
[1643998345061,0.00899812,40403.0,40402.0,0.04047426]
[1643998346806,0.00899812,40403.0,40401.0,0.00020902]
[1643998347004,0.061885,40402.0,40400.0,0.12501246]
[1643998347204,0.06868249,40402.0,40400.0,0.123757]
[1643998347408,0.43473277,40401.0,40400.0,0.12502232]
[1643998347605,0.48473277,40401.0,40400.0,0.12502232]
[1643998348003,0.49318621,40401.0,40400.0,0.12436414]
[1643998348407,0.49318621,40401.0,40400.0,0.12309882]
[1643998349756,0.54318621,40401.0,40400.0,0.12309882]
[1643998350456,0.15845344,40401.0,40400.0,0.12309882]
[1643998352459,0.15845344,40401.0,40400.0,0.11319882]
[1643998356608,0.15845344,40401.0,40399.0,0.00020569]
[1643998356609,0.47291546,40401.0,40399.0,0.00020569]
[1643998356808,0.15679345,40400.0,40396.0,0.06412169]
[1643998357010,0.8,40399.0,40398.0,0.00125569]
[1643998357255,0.05,40399.0,40398.0,0.00125569]
[1643998357855,0.05,40399.0,40396.0,0.06412169]
[1643998358057,0.061889,40398.0,40396.0,0.06537718]
[1643998358456,0.10074491,40397.0,40396.0,0.06537718]
[1643998358856,0.15836375,40397.0,40396.0,0.06537718]
[1643998359057,0.15836375,40397.0,40396.0,0.06412169]
[1643998359257,0.05761884,40397.0,40396.0,0.06412169]
[1643998359657,0.00761884,40397.0,40396.0,0.06412169]
[1643998359858,0.00725026,40397.0,40396.0,0.06412169]
[1643998360058,0.1,40399.0,40396.0,0.06412169]
[1643998360262,0.05,40399.0,40396.0,0.06412169]
[1643998360659,0.05781928,40399.0,40396.0,0.06412169]
[1643998360925,0.05,40399.0,40396.0,0.06412169]
[1643998363217,0.00889882,40400.0,40396.0,0.06412169]
[1643998364220,0.09621265,40398.0,40396.0,0.06504233]
[1643998364657,0.14621265,40398.0,40396.0,0.06504233]
[1643998364856,0.09668681,40397.0,40396.0,0.00092064]
[1643998365055,0.05,40398.0,40396.0,0.00092064]
[1643998365256,0.0958493,40396.0,40395.0,0.228769]
[1643998365461,0.05,40398.0,40395.0,0.223769]
[1643998365656,0.10239591,40397.0,40395.0,0.228769]
[1643998365856,0.09508876,40396.0,40395.0,0.228769]
[1643998366056,0.09089358,40396.0,40395.0,0.223769]
[1643998366258,0.10427938,40396.0,40395.0,0.223769]
[1643998366458,0.05,40397.0,40395.0,0.223769]
[1643998366757,0.14864815,40396.0,40395.0,0.228769]
[1643998366957,0.14864815,40396.0,40395.0,0.223769]
[1643998367157,0.14864815,40396.0,40395.0,0.218769]
[1643998369406,0.19864815,40396.0,40395.0,0.218769]
[1643998369807,0.14864815,40396.0,40395.0,0.218769]
[1643998370611,0.15565495,40396.0,40395.0,0.218769]
[1643998371407,0.14864815,40396.0,40395.0,0.218769]
[1643998371808,0.14864815,40396.0,40395.0,0.21897233]
[1643998372861,0.14510215,40396.0,40395.0,0.21897233]
[1643998373061,0.15233656,40396.0,40395.0,0.21897233]
[1643998374263,0.15233656,40396.0,40395.0,0.09520333]
[1643998374464,0.6101839,40396.0,40395.0,0.09520333]
[1643998379858,0.15233656,40396.0,40395.0,0.09520333]
[1643998380063,0.09510215,40396.0,40395.0,0.41441961]
[1643998380259,0.05,40401.0,40395.0,0.14460333]
[1643998380458,0.09264604,40400.0,40396.0,0.06188]
[1643998380660,0.09441424,40398.0,40396.0,0.06188]
[1643998380860,0.10507572,40397.0,40396.0,0.06208333]
[1643998381060,0.00680124,40401.0,40396.0,0.33378374]
[1643998381559,0.05,40398.0,40396.0,0.33378374]
[1643998381959,0.10494433,40397.0,40396.0,0.33252776]
[1643998382159,0.05,40398.0,40397.0,0.06188]
[1643998382359,0.05,40398.0,40397.0,0.32722693]
[1643998382561,0.05,40398.0,40397.0,0.37662693]
[1643998382761,0.05,40400.0,40397.0,0.47662693]
[1643998383911,0.05,40403.0,40397.0,0.47662693]
[1643998384610,0.05,40403.0,40398.0,0.00125593]
[1643998384809,0.05,40403.0,40399.0,0.11128]
[1643998385310,0.05,40400.0,40399.0,0.11128]
[1643998391013,0.05,40400.0,40399.0,0.09038]
[1643998392614,0.15495302,40400.0,40399.0,0.09038]
[1643998392815,0.15495302,40400.0,40399.0,0.0285]
[1643998393016,0.05,40400.0,40399.0,0.0285]
[1643998393615,0.05,40400.0,40398.0,0.123759]
[1643998393818,0.05,40400.0,40397.0,0.12501894]
[1643998393819,0.09573148,40398.0,40397.0,0.00125594]
[1643998394018,0.09573148,40398.0,40396.0,0.00020333]
[1643998394019,0.43296048,40398.0,40396.0,0.00020333]
[1643998394220,0.37020771,40399.0,40395.0,0.09520333]
[1643998394221,0.05,40396.0,40395.0,0.09520333]
[1643998394415,0.54221277,40396.0,40395.0,0.095]
[1643998394662,0.85599489,40396.0,40395.0,0.09520333]
[1643998395062,0.80599489,40396.0,40395.0,0.09520333]
[1643998395264,0.85599489,40396.0,40395.0,0.09520333]
[1643998395462,0.95103489,40396.0,40395.0,0.09520333]
[1643998396065,0.4891674,40396.0,40395.0,0.09520333]
[1643998396871,0.75244296,40396.0,40395.0,0.09520333]
[1643998397063,0.4891674,40396.0,40395.0,0.09520333]
[1643998397365,1.06680276,40396.0,40395.0,0.09520333]
[1643998397565,1.21680276,40396.0,40395.0,0.09520333]
[1643998400511,1.6,40394.0,40392.0,0.00325603]
[1643998400714,1.6,40394.0,40384.0,0.0011]
[1643998400715,0.09263901,40391.0,40384.0,0.0011]
[1643998400911,0.09263901,40391.0,40386.0,0.09330336]
[1643998400912,1.65,40387.0,40386.0,0.09330336]
[1643998401110,0.387229,40387.0,40386.0,0.09330336]
[1643998401411,0.48894368,40387.0,40386.0,0.09330336]
[1643998401609,0.85113251,40387.0,40386.0,0.09330336]
[1643998402258,0.85078024,40387.0,40386.0,0.09366872]
[1643998402859,0.83736024,40387.0,40386.0,0.09366872]
[1643998403563,1.08776804,40387.0,40386.0,0.08866872]
[1643998405063,1.48736024,40387.0,40386.0,0.08366872]
[1643998405261,0.83236024,40387.0,40386.0,0.08366872]
[1643998406710,0.47017141,40387.0,40386.0,0.08366872]
[1643998407108,0.45436141,40387.0,40386.0,0.08366872]
[1643998407313,0.39390368,40387.0,40386.0,0.08366872]
[1643998409210,0.39390368,40387.0,40386.0,0.07366872]
[1643998411866,0.05,40387.0,40386.0,0.07366872]
[1643998413065,0.387229,40387.0,40386.0,0.07366872]
[1643998413265,0.437229,40387.0,40386.0,0.07366872]
[1643998413515,0.10795643,40387.0,40386.0,0.07366872]
[1643998413715,0.10795643,40387.0,40386.0,0.12009572]
[1643998413916,0.10795643,40387.0,40386.0,0.11989236]
[1643998415814,0.10795643,40387.0,40386.0,0.12009342]
[1643998416819,0.10295643,40387.0,40386.0,0.12009342]
[1643998418666,0.00113257,40389.0,40386.0,0.12009342]
[1643998418867,0.00113257,40389.0,40387.0,0.0494]
[1643998419065,0.00113257,40389.0,40387.0,0.11149306]
[1643998419267,0.05,40390.0,40387.0,0.16149306]
[1643998419468,0.05113307,40390.0,40389.0,1.7179]
[1643998419664,0.05113307,40390.0,40389.0,0.6673]
[1643998419865,0.05113307,40390.0,40389.0,0.76750106]
[1643998420367,0.05,40390.0,40389.0,0.76750106]
[1643998420764,0.05,40390.0,40389.0,0.81750106]
[1643998421021,0.05,40390.0,40389.0,0.81250106]
[1643998422219,0.05,40390.0,40389.0,1.08839572]
[1643998422421,0.00113307,40392.0,40390.0,1.66188]
[1643998422628,0.00113307,40392.0,40391.0,0.34964531]
[1643998422820,0.0021883,40398.0,40391.0,0.44984637]
[1643998423124,0.00113299,40393.0,40392.0,0.12376]
[1643998423320,0.00113299,40393.0,40392.0,0.44314058]
[1643998423721,0.05,40403.0,40395.0,0.06188]
[1643998423922,0.05,40403.0,40397.0,0.06188]
[1643998424121,0.05,40403.0,40398.0,0.0494]
[1643998424523,0.0725308,40406.0,40399.0,0.25525555]
[1643998424763,0.0725308,40406.0,40405.0,0.40620625]
[1643998424961,0.1012799,40405.0,40404.0,0.061877]
[1643998425162,0.1512799,40405.0,40404.0,0.061877]
[1643998425361,0.05,40405.0,40404.0,0.061877]
[1643998425664,0.0725308,40406.0,40404.0,0.061877]
[1643998425864,0.02867383,40406.0,40405.0,0.0494]
[1643998426062,0.27127159,40406.0,40405.0,0.0494]
[1643998426262,0.4097598,40406.0,40405.0,0.0494]
[1643998426464,0.41608833,40406.0,40405.0,0.0494]
[1643998427264,0.47797133,40406.0,40405.0,0.0494]
[1643998427865,0.73432204,40406.0,40405.0,0.0494]
[1643998428271,0.47797133,40406.0,40405.0,0.0494]
[1643998428717,0.72654057,40406.0,40405.0,0.0494]
[1643998429014,0.47797133,40406.0,40405.0,0.0494]
[1643998429814,0.81096669,40406.0,40405.0,0.0494]
[1643998430216,0.81096669,40406.0,40399.0,0.123756]
[1643998430416,0.05,40400.0,40399.0,0.123756]
[1643998430616,0.25985816,40400.0,40399.0,0.123756]
[1643998430820,0.65739048,40400.0,40399.0,0.123756]
[1643998431017,0.66381586,40400.0,40399.0,0.123756]
[1643998431415,0.31628354,40400.0,40399.0,0.123756]
[1643998433062,0.26628354,40400.0,40399.0,0.123756]
[1643998433261,0.31628354,40400.0,40399.0,0.123756]
[1643998433662,0.15642538,40400.0,40399.0,0.123756]
[1643998433864,0.15,40400.0,40399.0,0.123756]
[1643998434063,0.1575826,40400.0,40399.0,0.123756]
[1643998435065,0.29951416,40400.0,40399.0,0.123756]
[1643998435922,0.6457563,40400.0,40399.0,0.123756]
[1643998436223,0.6457563,40400.0,40393.0,0.123779]
[1643998436224,0.05,40399.0,40393.0,0.123779]
[1643998436421,0.05,40394.0,40391.0,0.00020106]
[1643998436619,0.14835185,40393.0,40390.0,0.00020106]
[1643998436819,0.24835185,40393.0,40389.0,0.00020106]
[1643998437021,0.24835185,40393.0,40388.0,0.38993289]
[1643998437022,0.25551853,40393.0,40388.0,0.38993289]
[1643998437219,0.25551853,40393.0,40388.0,0.38862171]
[1643998437419,0.30551853,40393.0,40389.0,0.123788]
[1643998437620,0.30551853,40393.0,40389.0,0.12398906]
[1643998437820,0.20551853,40393.0,40389.0,0.12398906]
[1643998438021,0.05,40390.0,40389.0,0.12398906]
[1643998439123,0.1,40393.0,40389.0,0.12398906]
[1643998439322,0.05,40393.0,40389.0,0.12398906]
[1643998439769,0.05,40393.0,40389.0,0.11827972]
[1643998439967,0.18165668,40393.0,40389.0,0.11827972]
[1643998440170,0.23165668,40393.0,40389.0,0.11827972]
[1643998440367,0.24018494,40393.0,40389.0,0.11827972]
[1643998440870,0.05,40393.0,40389.0,0.11827972]
[1643998441475,0.00131086,40395.0,40389.0,0.11827972]
[1643998441671,0.00131086,40395.0,40389.0,0.16767972]
[1643998442069,0.05,40399.0,40389.0,0.16767972]
[1643998442271,0.00131087,40395.0,40389.0,0.16767972]
[1643998442471,0.00131087,40395.0,40390.0,0.061886]
[1643998442769,0.00131087,40395.0,40391.0,0.061884]
[1643998442969,0.00131087,40395.0,40391.0,0.06208506]
[1643998443173,0.15827469,40400.0,40391.0,0.06208506]
[1643998443419,0.05879998,40403.0,40399.0,0.44444734]
[1643998443615,0.05,40403.0,40400.0,0.061883]
[1643998443817,0.05,40404.0,40400.0,0.061883]
[1643998443818,0.00646184,40404.0,40400.0,0.061883]
[1643998444415,0.15405944,40401.0,40400.0,0.061883]
[1643998444816,0.84326421,40401.0,40394.0,0.123777]
[1643998445016,0.84326421,40401.0,40391.0,0.01886426]
[1643998445017,0.05,40395.0,40392.0,0.00020106]
[1643998445218,0.05,40395.0,40391.0,0.01886426]
[1643998445219,0.13450291,40393.0,40391.0,0.01886426]
[1643998445415,0.05,40393.0,40391.0,0.01886426]
[1643998445716,0.00645413,40393.0,40391.0,0.01886426]
[1643998445916,0.00645413,40393.0,40391.0,0.39127313]
[1643998446116,0.00645413,40393.0,40391.0,0.45316613]
[1643998446915,0.00645413,40393.0,40391.0,0.43430187]
[1643998447162,0.10946636,40395.0,40391.0,0.43430187]
[1643998448164,0.05,40395.0,40391.0,0.43430187]
[1643998448365,0.05807716,40395.0,40391.0,0.43430187]
[1643998448567,0.00807716,40395.0,40391.0,0.43430187]
[1643998448766,0.00131088,40395.0,40391.0,0.53430187]
[1643998449167,0.00131088,40395.0,40392.0,0.0494]
[1643998449368,0.01,40400.0,40393.0,0.123763]